bitfinex-derivatives/quotes_ETHF0:USTF0_20250326
["timestamp","ask_amount","ask_price","bid_price","bid_amount"]
[1742996152047,0.97452,2051.9,2051.8,1.3322]
[1742996152557,0.97448,2052.0,2051.8,5.51451]
[1742996152751,0.97449,2051.9,2051.8,4.54]
[1742996153458,0.97449,2051.9,2051.8,1.3322]
[1742996153659,0.97453,2051.8,2051.7,3.458]
[1742996153853,0.97453,2051.8,2051.7,4.8051]
[1742996156558,0.97453,2051.8,2051.7,1.3471]
[1742996157664,0.97453,2051.8,2051.7,2.32168]
[1742996158057,0.97453,2051.8,2051.7,1.3471]
[1742996158557,0.97453,2051.8,2051.7,2.32168]
[1742996158756,0.97453,2051.8,2051.7,1.3471]
[1742996158957,1.3344,2051.9,2051.7,1.3471]
[1742996159152,2.30892,2051.9,2051.8,0.97453]
[1742996159465,2.30889,2051.9,2051.8,4.18233]
[1742996160258,0.0073119,2052.1,2051.8,6.6468]
[1742996160463,12.94984,2052.9,2052.1,2.43598]
[1742996160653,0.6473,2052.9,2052.5,3.2078]
[1742996160860,0.97408,2052.8,2052.6,5.73644]
[1742996161160,0.97408,2052.8,2052.6,46.53645]
[1742996161356,1.4147,2052.9,2052.6,45.5623]
[1742996161559,1.4147,2052.9,2052.8,4.18186]
[1742996161759,23.77115532,2053.1,2052.9,0.97401]
[1742996161760,0.0073119,2053.0,2052.9,0.97401]
[1742996162060,22.79720532,2053.1,2053.0,0.97396]
[1742996162270,22.79720532,2053.1,2052.9,5.1385]
[1742996162558,0.97385,2053.3,2053.0,41.77396]
[1742996162769,0.97387,2053.2,2053.0,41.77396]
[1742996162955,0.97392,2053.1,2053.0,40.8]
[1742996163564,0.97406,2052.8,2052.7,0.6724]
[1742996163962,0.97406,2052.8,2052.7,41.4724]
[1742996164156,0.97406,2052.8,2052.7,0.6724]
[1742996164466,0.97415,2052.6,2052.5,3.4623119]
[1742996164668,0.97415,2052.6,2052.5,44.2623119]
[1742996165067,1.4153,2052.9,2052.5,44.2623119]
[1742996165263,0.97404,2052.9,2052.7,4.1819]
[1742996165462,0.97406,2052.8,2052.7,3.2078]
[1742996165664,0.97415,2052.6,2052.5,0.0073119]
[1742996165865,0.97415,2052.6,2052.5,3.4663119]
[1742996166464,2.38944,2052.7,2052.5,3.4663119]
[1742996166659,2.43495,2053.0,2052.5,3.4663119]
[1742996166866,0.97415,2052.6,2052.5,3.4663119]
[1742996167066,1.281,2052.9,2052.5,3.4663119]
[1742996167271,16.5368,2053.2,2052.7,3.2078]
[1742996167272,9.87,2053.2,2052.7,3.2078]
[1742996167468,0.97396,2053.0,2052.9,0.97401]
[1742996167768,0.00729806,2053.3,2053.2,0.97387]
[1742996167963,0.00729806,2053.3,2053.2,7.64467]
[1742996168468,0.00729806,2053.3,2053.2,6.6708]
[1742996168970,0.00729806,2053.3,2053.2,7.64467]
[1742996169774,0.00729806,2053.3,2053.2,48.44467]
[1742996169966,0.00729806,2053.3,2053.2,47.4708]
[1742996170167,0.00729806,2053.3,2053.2,48.44467]
[1742996170969,3.2078,2053.8,2053.6,0.97366]
[1742996171166,1.3527,2054.0,2053.7,3.2078]
[1742996171566,2.32619,2054.0,2053.7,3.2078]
[1742996171758,1.3527,2054.0,2053.7,3.2078]
[1742996171963,0.6999,2054.3,2053.7,3.2078]
[1742996172164,1.2885,2054.2,2053.9,0.97351]
[1742996172368,1.2885,2054.2,2053.8,4.44056]
[1742996172571,1.2885,2054.2,2053.9,0.97352]
[1742996172768,1.2885,2054.2,2053.8,4.44055]
[1742996173271,1.2885,2054.2,2053.8,3.467]
[1742996173466,2.26192,2054.2,2053.8,4.44058]
[1742996173669,0.97348,2054.1,2053.7,7.64643]
[1742996173869,1.2885,2054.0,2053.7,6.6728]
[1742996174269,1.2885,2054.0,2053.8,0.97357]
[1742996174468,1.2885,2054.0,2053.7,7.3525]
[1742996174671,3.9077,2054.3,2053.7,7.3525]
[1742996174862,1.2885,2054.2,2054.0,0.97346]
[1742996175170,1.2885,2054.2,2054.0,3.469]
[1742996175471,0.97355,2053.9,2053.7,0.6797]
[1742996175675,1.3117,2053.8,2053.7,0.6797]
[1742996176275,2.2853,2053.8,2053.6,0.0073119]
[1742996176670,1.3117,2053.8,2053.7,0.97363]
[1742996176876,3.2078,2053.9,2053.6,1.3990119]
[1742996177270,3.2078,2053.9,2053.7,0.97361]
[1742996177575,1.3117,2054.0,2053.9,0.97354]
[1742996178079,1.67328,2054.3,2054.0,0.97348]
[1742996178374,0.97353,2054.0,2053.8,3.473]
[1742996178573,2.27564,2053.9,2053.8,4.8033]
[1742996178776,1.3021,2053.9,2053.8,4.8033]
[1742996179079,1.3021,2053.9,2053.8,5.77689]
[1742996179379,3.2078,2054.2,2054.0,0.97346]
[1742996179572,1.3021,2054.1,2053.9,1.64729]
[1742996179877,4.18106,2054.5,2054.2,0.97335]
[1742996180179,2.27541,2054.4,2054.2,0.97335]
[1742996180479,1.3021,2054.4,2054.3,0.97335]
[1742996183271,1.6719,2054.7,2054.2,2.43341]
[1742996183466,1.3485,2054.6,2054.5,0.97325]
[1742996183876,1.3485,2054.6,2054.5,41.77325]
[1742996184472,2.32171,2054.6,2054.5,41.77325]
[1742996184685,1.3485,2054.6,2054.5,41.77325]
[1742996185581,10.5417,2055.0,2054.6,2.433]
[1742996185782,0.7024,2055.1,2054.7,5.9009]
[1742996186077,0.97306,2054.9,2054.8,0.97307]
[1742996186282,3.9102,2055.1,2054.7,3.4753119]
[1742996186473,0.97311,2054.8,2054.7,4.4484319]
[1742996186671,0.97311,2054.8,2054.7,0.9804319]
[1742996186980,1.3305,2055.0,2054.7,0.0073119]
[1742996187169,0.97311,2054.8,2054.7,0.9804619]
[1742996187375,0.97311,2054.8,2054.7,0.0073119]
[1742996187778,0.97311,2054.8,2054.7,0.9804719]
[1742996187981,0.97311,2054.8,2054.7,0.0073119]
[1742996188178,1.3305,2055.0,2054.7,0.0073119]
[1742996188484,0.97311,2054.8,2054.7,0.0073119]
[1742996190286,0.9731,2054.9,2054.7,0.9804419]
[1742996190489,0.97311,2054.8,2054.7,0.0073119]
[1742996190678,1.3774,2054.9,2054.7,0.0073119]
[1742996190874,2.43304,2054.6,2053.9,0.9735]
[1742996191079,2.43357,2054.2,2053.7,0.97362]
[1742996191285,0.97362,2053.8,2053.7,41.77362]
[1742996191584,0.97359,2053.8,2053.7,40.8]
[1742996192081,1.3774,2053.9,2053.7,40.8]
[1742996192287,1.3774,2053.9,2053.8,0.97359]
[1742996192485,1.3774,2053.9,2053.7,40.8]
[1742996192683,0.97359,2053.8,2053.7,44.272]
[1742996193181,2.35098,2053.9,2053.8,0.97359]
[1742996193791,0.97359,2053.8,2053.7,45.24559]
[1742996193990,1.2972,2053.8,2053.7,45.24559]
[1742996194389,0.97355,2053.9,2053.8,0.97354]
[1742996194583,2.27075,2053.9,2053.8,0.97354]
[1742996194984,1.2972,2053.9,2053.8,0.97354]
[1742996195588,2.27074,2053.9,2053.8,0.97359]
[1742996195789,0.97359,2053.8,2053.7,44.265]
[1742996195981,2.27079,2053.8,2053.7,41.77361]
[1742996196179,5.47859,2053.8,2053.7,40.8]
[1742996196992,0.97368,2053.6,2053.5,0.0073119]
[1742996197293,0.97396,2053.1,2053.0,0.97393]
[1742996197492,0.97396,2053.1,2053.0,41.77393]
[1742996198589,2.36351,2053.2,2053.1,0.97392]
[1742996198782,2.36347,2053.2,2053.1,0.97392]
[1742996198983,0.97392,2053.1,2053.0,40.8]
[1742996199187,2.36352,2053.1,2053.0,40.8]
[1742996200388,0.97401,2052.9,2052.8,0.0073119]
[1742996200596,0.97401,2052.9,2052.8,0.9813719]
[1742996200996,0.97401,2053.0,2052.9,0.97397]
[1742996201296,2.27261,2053.0,2052.9,1.4183]
[1742996201998,0.97401,2052.9,2052.8,40.8073119]
[1742996202295,2.27261,2052.9,2052.8,40.8073119]
[1742996202795,2.27261,2052.9,2052.8,41.7813719]
[1742996202997,2.27261,2052.9,2052.8,40.8073119]
[1742996203188,1.2986,2052.9,2052.8,41.7813719]
[1742996203488,2.43484,2053.1,2052.8,40.8073119]
[1742996203694,0.97396,2053.0,2052.9,1.3327]
[1742996203897,5.49616,2053.0,2052.9,1.3327]
[1742996204196,0.97401,2052.9,2052.8,40.8073119]
[1742996204490,2.28841,2052.9,2052.8,40.8073119]
[1742996204695,2.28841,2052.9,2052.8,0.0073119]
[1742996207192,2.28841,2052.9,2052.8,0.9813719]
[1742996207387,2.28841,2052.9,2052.8,1.2903119]
[1742996208994,2.28841,2052.9,2052.8,42.0903119]
[1742996209584,2.28841,2052.9,2052.8,40.8073119]
[1742996209788,2.28841,2052.9,2052.8,0.0073119]
[1742996210389,2.28841,2052.9,2052.8,40.8073119]
[1742996210584,2.28841,2052.9,2052.8,41.7813719]
[1742996210790,2.28841,2052.9,2052.8,43.2007719]
[1742996211189,9.87,2053.7,2052.8,45.9467119]
[1742996211401,0.08480276,2054.6,2053.9,0.97354]
[1742996211402,3.8894,2054.2,2053.9,0.97354]
[1742996211699,0.97359,2053.8,2053.7,1.4125]
[1742996212801,2.33689,2053.8,2053.7,1.4125]
[1742996214095,0.0073119,2054.0,2053.9,0.97354]
[1742996214603,0.9808019,2054.0,2053.8,0.97355]
[1742996214908,0.0073119,2054.0,2053.9,2.29244]
[1742996215200,0.9808019,2054.0,2053.9,1.3189]
[1742996215397,2.2758019,2054.0,2053.9,1.3189]
[1742996215601,2.2758019,2054.0,2053.9,2.29244]
[1742996215896,2.2758019,2054.0,2053.9,1.3189]
[1742996216098,1.3023119,2054.0,2053.9,2.29244]
[1742996216400,2.2758019,2054.0,2053.9,1.3189]
[1742996217304,1.3023119,2054.0,2053.9,2.29244]
[1742996217506,0.0073119,2054.0,2053.9,2.29244]
[1742996218905,0.0073119,2054.0,2053.9,2.95214]
[1742996220499,0.6765,2054.5,2053.9,1.9786]
[1742996220703,0.97335,2054.3,2054.2,0.97337]
[1742996221500,9.87,2055.4,2054.4,3.2078]
[1742996221699,9.87,2055.4,2053.9,0.6597]
[1742996221700,3.2078,2055.3,2054.8,3.2078]
[1742996221902,0.97316,2054.7,2054.6,1.3622]
[1742996222305,0.97325,2054.5,2054.4,44.0151119]
[1742996222504,0.97325,2054.5,2054.4,45.3773119]
[1742996223001,0.97325,2054.5,2054.4,4.5773119]
[1742996223304,2.25934,2054.6,2054.4,5.5506119]
[1742996223497,0.97325,2054.5,2054.4,5.5506119]
[1742996223700,2.27655,2054.5,2054.4,4.5773119]
[1742996223896,2.27655,2054.5,2054.4,1.3695119]
[1742996224098,2.27655,2054.5,2054.4,0.0073119]
[1742996224307,1.3033,2054.5,2054.4,0.0073119]
[1742996224508,2.27655,2054.5,2054.4,0.0073119]
[1742996225193,2.27655,2054.5,2054.4,3.2151119]
[1742996225508,0.97324,2054.6,2054.4,4.1883719]
[1742996225696,0.97324,2054.6,2054.5,1.2932]
[1742996226410,2.27654,2054.6,2054.5,1.2932]
[1742996226705,0.97325,2054.5,2054.4,3.8619119]
[1742996226902,2.31805,2054.5,2054.4,3.8619119]
[1742996227808,2.31805,2054.5,2054.4,6.2408119]
[1742996228113,2.31805,2054.5,2054.4,5.2675119]
[1742996228705,0.97325,2054.6,2054.5,0.97325]
[1742996228902,0.97325,2054.6,2054.5,1.4056]
[1742996229308,0.97325,2054.5,2054.4,3.2151119]
[1742996230812,0.97325,2054.5,2054.4,4.1884119]
[1742996230998,2.31802,2054.7,2054.6,0.97321]
[1742996231197,1.3448,2054.7,2054.4,5.2216119]
[1742996231406,2.318,2054.7,2054.6,0.97321]
[1742996232511,2.318,2054.7,2054.6,1.3364]
[1742996232808,2.318,2054.7,2054.6,2.30961]
[1742996233012,9.87,2055.0,2054.6,1.3364]
[1742996233207,12.14275,2055.0,2054.9,0.97306]
[1742996233403,9.87,2055.3,2054.8,3.2078]
[1742996233603,2.91722,2055.2,2055.1,3.2078]
[1742996233809,2.91722,2055.2,2055.1,3.1858643]
[1742996234110,2.91722,2055.2,2054.7,1.3079]
[1742996234111,0.97311,2054.8,2054.7,1.3079]
[1742996235415,0.97321,2054.6,2054.5,0.6633]
[1742996236809,0.97321,2054.6,2054.5,1.9876]
[1742996237707,0.97321,2054.6,2054.5,1.3243]
[1742996239914,1.2997,2054.7,2054.5,1.3243]
[1742996239915,1.2997,2054.7,2054.6,0.97321]
[1742996241113,1.2997,2054.7,2054.5,1.3243]
[1742996241315,0.97321,2054.6,2054.5,2.29752]
[1742996241816,0.97319,2054.7,2054.6,0.97318]
[1742996242207,0.97322,2054.6,2054.5,0.97322]
[1742996242404,2.36472,2054.8,2054.7,0.97316]
[1742996242623,0.6446,2055.2,2054.8,2.43279]
[1742996242809,0.97306,2054.9,2054.8,0.6727]
[1742996243120,0.97311,2054.8,2054.7,3.2078]
[1742996243313,2.29781,2054.8,2054.7,3.2078]
[1742996245213,1.3247,2054.8,2054.7,3.2078]
[1742996245415,0.97306,2055.0,2054.9,0.97306]
[1742996246514,2.29565,2055.2,2055.1,0.97297]
[1742996246713,0.97295,2055.2,2055.1,4.18077]
[1742996247120,1.3227,2055.3,2055.2,0.97292]
[1742996247418,0.97287,2055.3,2055.2,0.97292]
[1742996248116,0.97292,2055.2,2055.1,3.2078]
[1742996248619,0.97291,2055.3,2055.1,3.2078]
[1742996248823,0.97287,2055.3,2055.2,0.97287]
[1742996249510,2.29557,2055.4,2055.3,0.97287]
[1742996249918,0.97279,2055.5,2055.4,0.97283]
[1742996250118,0.97279,2055.5,2055.4,4.18063]
[1742996250517,0.97279,2055.5,2055.4,3.2078]
[1742996250725,0.97279,2055.5,2055.4,4.18063]
[1742996251025,0.97279,2055.5,2055.4,3.2078]
[1742996252316,2.34949,2055.5,2055.4,3.2078]
[1742996252717,2.34949,2055.5,2055.4,4.18063]
[1742996252923,2.34949,2055.5,2055.4,3.2078]
[1742996253119,9.87,2055.6,2055.5,0.97278]
[1742996253427,0.97278,2055.5,2055.4,4.1806]
[1742996254328,0.97278,2055.5,2055.4,44.9806]
[1742996255621,0.97278,2055.5,2055.4,3.2078]
[1742996255926,2.32168,2055.5,2055.4,3.2078]
[1742996257715,2.32168,2055.5,2055.4,4.6146]
[1742996258723,0.97278,2055.5,2055.4,4.6146]
[1742996258925,1.3138,2055.6,2055.4,4.6146]
[1742996259124,0.97278,2055.5,2055.4,4.6146]
[1742996260429,0.97278,2055.5,2055.4,5.58743]
[1742996260927,0.97278,2055.5,2055.4,4.6146]
[1742996261834,0.97278,2055.5,2055.4,5.58743]
[1742996262023,2.28656,2055.6,2055.4,4.6146]
[1742996262221,6.7138,2055.9,2055.4,7.04664]
[1742996262222,2.43157,2055.9,2055.4,7.04664]
[1742996262426,0.97276,2055.7,2055.6,0.97271]
[1742996262726,0.97276,2055.7,2055.6,4.18051]
[1742996263123,1.3526,2055.9,2055.8,0.97264]
[1742996263323,0.7042,2056.0,2055.9,0.97254]
[1742996263324,0.97257,2056.0,2055.9,0.97254]
[1742996263517,0.97257,2056.0,2055.9,4.18034]
[1742996264323,0.97257,2056.0,2055.9,3.2078]
[1742996264524,0.97257,2056.0,2055.9,4.18039]
[1742996264833,0.97257,2056.0,2055.9,5.51719]
[1742996266832,0.97254,2056.1,2056.0,0.97252]
[1742996267135,2.2667,2056.1,2056.0,1.3192]
[1742996267433,10.54,2056.5,2056.1,0.97245]
[1742996267640,2.2666,2056.3,2056.2,1.3192]
[1742996267935,0.97239,2056.4,2056.2,1.3192]
[1742996268233,0.9724,2056.3,2056.2,1.3192]
[1742996268429,2.2666,2056.3,2056.2,2.29165]
[1742996268624,2.2666,2056.3,2056.2,5.49945]
[1742996269029,0.97237,2056.4,2056.2,4.527]
[1742996269229,0.97237,2056.4,2056.3,1.3192]
[1742996269439,18.6979505,2056.6,2056.4,0.97235]
[1742996269632,0.97235,2056.4,2056.3,4.18018]
[1742996269829,0.97235,2056.4,2056.3,3.2078]
[1742996270138,0.97235,2056.4,2056.3,4.18018]
[1742996270331,0.97235,2056.4,2056.3,44.0078]
[1742996270838,0.97235,2056.4,2056.3,44.98017]
[1742996271128,18.6979505,2056.6,2056.3,44.0078]
[1742996271334,0.97231,2056.5,2056.4,0.97235]
[1742996271525,2.36373,2056.5,2056.4,0.97235]
[1742996272532,7.5337505,2056.6,2056.4,0.97235]
[1742996272840,0.97231,2056.5,2056.4,0.97235]
[1742996273027,1.3275,2056.7,2056.6,0.97226]
[1742996273228,9.87,2057.1,2056.6,3.2078]
[1742996273424,1.9722,2057.2,2056.9,3.2078]
[1742996273635,2.4303,2056.9,2056.4,0.00729395]
[1742996273933,2.0371,2056.8,2056.5,3.2078]
[1742996274133,2.0371,2056.8,2056.6,0.97224]
[1742996274345,1.3275,2056.8,2056.7,0.97221]
[1742996274541,9.87,2056.9,2056.7,0.97219]
[1742996274839,10.84212,2056.9,2056.8,3.2078]
[1742996275229,0.97212,2056.9,2056.8,3.2078]
[1742996275438,2.43023,2057.0,2056.4,6.74909395]
[1742996275637,0.97231,2056.5,2056.4,3.21509395]
[1742996275833,13.0778,2057.1,2056.4,3.21509395]
[1742996276030,0.97218,2056.8,2056.7,3.2078]
[1742996277633,0.97217,2056.8,2056.7,4.18]
[1742996277939,0.97215,2056.9,2056.7,4.18]
[1742996278138,0.9721,2057.0,2056.8,0.97217]
[1742996278442,0.97212,2056.9,2056.7,4.17998]
[1742996278741,0.97217,2056.8,2056.7,4.17998]
[1742996278938,0.97215,2056.9,2056.8,0.97217]
[1742996279327,11.2069,2057.2,2056.8,0.97216]
[1742996279546,0.97209,2057.0,2056.9,3.2078]
[1742996281041,0.97204,2057.1,2056.9,3.2078]
[1742996281245,1.61672,2057.2,2057.0,0.97204]
[1742996281449,0.97202,2057.1,2057.0,0.6991]
[1742996281639,5.63746,2057.5,2057.0,0.6991]
[1742996281640,9.87,2057.5,2057.0,0.6991]
[1742996281833,0.6734,2057.6,2057.3,3.2078]
[1742996282139,0.97188,2057.5,2057.3,3.2078]
[1742996282337,0.97188,2057.4,2057.3,4.17971]
[1742996282538,0.97188,2057.4,2057.3,3.2078]
[1742996282738,0.97202,2057.1,2057.0,3.2078]
[1742996282938,0.97202,2057.1,2057.0,4.17987]
[1742996283144,0.97202,2057.1,2057.0,3.2078]
[1742996283333,5.94957,2057.6,2057.1,0.972]
[1742996283538,0.97196,2057.3,2057.1,0.97202]
[1742996283841,0.97196,2057.3,2057.2,1.61658]
[1742996284049,0.97193,2057.3,2057.2,1.61655]
[1742996284251,0.97193,2057.3,2057.2,0.6446]
[1742996285050,0.97202,2057.1,2057.0,4.17987]
[1742996285547,2.42972,2057.4,2057.0,3.2078]
[1742996285935,0.97185,2057.5,2057.0,3.2078]
[1742996286140,0.6734,2057.7,2057.4,0.97187]
[1742996286343,0.97188,2057.4,2057.3,3.2078]
[1742996286848,0.6734,2057.7,2057.3,3.2078]
[1742996287144,1.3164,2057.6,2057.5,4.17963]
[1742996287350,2.28819,2057.6,2057.5,3.2078]
[1742996288149,2.28819,2057.6,2057.5,4.17963]
[1742996288341,1.3164,2057.6,2057.5,5.46403]
[1742996288546,2.28819,2057.6,2057.5,5.46403]
[1742996288851,1.3164,2057.6,2057.5,5.46403]
[1742996289048,0.65,2057.8,2057.5,4.4922]
[1742996289239,1.9695,2057.8,2057.7,0.97174]
[1742996289445,1.3195,2057.8,2057.7,0.97174]
[1742996289646,1.3195,2057.8,2057.7,41.77174]
[1742996289949,0.97167,2057.9,2057.7,40.8]
[1742996290156,2.29112,2058.0,2057.9,0.97165]
[1742996290345,2.29112,2058.0,2057.9,1.2844]
[1742996290648,0.97162,2058.0,2057.9,1.2844]
[1742996290953,0.9716,2058.0,2057.9,1.2844]
[1742996291150,0.97165,2057.9,2057.8,3.8759]
[1742996291452,0.97169,2057.8,2057.7,42.1552]
[1742996291650,2.30729,2057.8,2057.7,42.1552]
[1742996291851,1.3356,2057.8,2057.7,43.12692]
[1742996292057,9.87,2058.2,2057.7,42.1552]
[1742996292250,0.9716,2058.0,2057.9,3.2078]
[1742996292843,1.3356,2058.1,2058.0,0.9716]
[1742996293040,6.02713826,2058.7,2058.0,1.3552]
[1742996293041,3.2078,2058.7,2058.0,1.3552]
[1742996293244,0.97146,2058.3,2058.2,3.2078]
[1742996293644,0.97139,2058.5,2058.2,3.2078]
[1742996293951,3.2078,2058.7,2058.2,3.2078]
[1742996293952,3.2078,2058.7,2058.3,2.0118]
[1742996294154,0.97141,2058.4,2058.3,2.0118]
[1742996294562,0.97141,2058.4,2058.3,2.98326]
[1742996294849,0.97141,2058.4,2058.3,2.0118]
[1742996295954,0.97146,2058.3,2058.2,3.2078]
[1742996296155,0.97155,2058.1,2058.0,1.3669]
[1742996296352,0.97155,2058.1,2058.0,1.35278701]
[1742996296550,1.3094,2058.3,2058.0,2.32435701]
[1742996296744,0.97153,2058.2,2058.0,2.32435701]
[1742996297053,0.97155,2058.1,2058.0,1.35278701]
[1742996297253,2.37995,2058.1,2058.0,1.35278701]
[1742996297446,9.87,2058.5,2058.0,1.35278701]
[1742996297651,0.97146,2058.3,2058.2,3.2078]
[1742996298252,2.36573701,2058.4,2058.2,4.17929]
[1742996298553,2.36573701,2058.4,2058.3,1.406]
[1742996298754,2.36569701,2058.4,2058.3,2.071]
[1742996298959,9.87,2058.5,2058.3,3.04246]
[1742996299155,0.97141,2058.4,2058.3,2.071]
[1742996300059,10.84139,2058.5,2058.3,3.04244]
[1742996300262,9.87,2058.5,2058.4,0.97141]
[1742996300562,9.87,2058.5,2058.3,2.071]
[1742996300563,0.97141,2058.4,2058.3,2.071]
[1742996300758,1.2977,2058.4,2058.3,3.04243]
[1742996301254,9.87,2058.5,2058.4,0.97141]
[1742996301851,0.97135,2058.6,2058.5,0.97136]
[1742996302054,0.97135,2058.6,2058.5,3.2078]
[1742996302655,0.97135,2058.6,2058.5,4.17916]
[1742996302967,1.2977,2058.7,2058.5,3.2078]
[1742996303160,2.269,2058.7,2058.6,0.97132]
[1742996303660,2.269,2058.7,2058.5,3.2078]
[1742996303855,0.97132,2058.6,2058.5,3.2078]
[1742996304055,0.97132,2058.6,2058.3,2.78439395]
[1742996304056,0.97141,2058.4,2058.3,2.07829395]
[1742996304861,4.17921,2058.4,2058.3,1.41329395]
[1742996305356,6.80621,2058.4,2058.3,1.41329395]
[1742996305756,6.80621,2058.4,2058.3,0.00729395]
[1742996307957,23.062,2058.4,2057.6,3.2078]
[1742996308165,0.97202,2057.1,2057.0,4.17986]
[1742996308456,0.97202,2057.1,2057.0,44.0078]
[1742996309067,0.97217,2056.8,2056.7,0.6602]
[1742996309261,12.3003,2056.9,2056.3,3.2078]
[1742996309586,9.87,2056.9,2056.7,3.2078]
[1742996309769,0.0072341,2057.3,2056.8,2.30247]
[1742996310072,2.26272,2057.2,2056.8,1.3303]
[1742996310272,2.26272,2057.2,2057.1,3.2078]
[1742996310568,2.26272,2057.2,2056.9,0.97209]
[1742996310569,1.2907,2057.2,2056.9,0.97209]
[1742996310767,1.2907,2057.2,2056.8,4.5381]
[1742996310967,1.2907,2057.2,2056.8,5.51024]
[1742996311168,0.97212,2056.9,2056.8,5.51024]
[1742996311371,0.97209,2057.0,2056.8,5.51022]
[1742996311559,0.97212,2056.9,2056.8,5.51022]
[1742996311756,4.40428,2057.2,2056.8,4.5381]
[1742996311970,0.97212,2056.9,2056.8,4.5381]
[1742996313265,0.97212,2056.9,2056.8,3.2078]
[1742996313467,0.97226,2056.7,2056.5,5.55318395]
[1742996313671,0.97226,2056.6,2056.5,4.84219395]
[1742996313869,0.97226,2056.6,2056.5,3.86989395]
[1742996314173,0.97226,2056.6,2056.5,4.84220395]
[1742996314561,0.97226,2056.6,2056.5,3.86989395]
[1742996314768,0.97226,2056.6,2056.5,3.21509395]
[1742996315570,2.32956,2056.6,2056.5,3.21509395]
[1742996316968,2.32956,2056.6,2056.5,4.54909395]
[1742996317472,2.32956,2056.6,2056.5,3.21509395]
[1742996317870,2.32956,2056.6,2056.5,0.00729395]
[1742996319776,2.32956,2056.6,2056.5,0.97960395]
[1742996319970,2.32956,2056.6,2056.5,0.00729395]
[1742996320371,2.32956,2056.6,2056.5,1.40099395]
[1742996323671,9.87,2056.8,2056.7,0.97221]
[1742996324076,10.84217,2056.8,2056.7,0.97221]
[1742996324380,12.23017,2056.8,2056.7,2.37801]
[1742996324781,9.87,2056.8,2056.7,2.37801]
[1742996325072,0.97207,2057.1,2056.7,2.37801]
[1742996325277,0.97207,2057.1,2057.0,0.97205]
[1742996325664,0.97207,2057.1,2057.0,2.37785]
[1742996325979,0.97207,2057.1,2057.0,1.4058]
[1742996326969,1.388,2057.2,2056.6,5.49392]
[1742996327178,0.97221,2056.7,2056.6,5.49396]
[1742996327479,0.97221,2056.7,2056.6,4.5217]
[1742996327673,0.97221,2056.7,2056.6,3.8524]
[1742996328272,0.97221,2056.7,2056.6,5.1326]
[1742996330077,0.97221,2056.7,2056.6,4.488]
[1742996331276,2.37821,2056.7,2056.6,4.488]
[1742996336678,9.87,2056.9,2056.6,6.91865]
[1742996336880,10.84212,2056.9,2056.8,0.97217]
[1742996337082,0.97217,2056.8,2056.7,2.34307]
[1742996337380,0.97217,2056.8,2056.7,0.6681]
[1742996337575,0.97221,2056.7,2056.6,3.2078]
[1742996339279,1.67701,2056.7,2056.6,3.2078]
[1742996339588,1.67701,2056.7,2056.5,0.00729395]
[1742996339589,0.97226,2056.6,2056.5,3.95e-06]
[1742996339777,12.84056,2056.6,2056.5,3.95e-06]
[1742996340081,15.34056,2056.6,2056.5,3.95e-06]
[1742996340277,15.42041822,2056.6,2056.5,3.95e-06]
[1742996340680,16.35556,2056.6,2056.5,3.95e-06]
[1742996341374,18.85556,2056.6,2056.5,3.95e-06]
[1742996341682,17.5761,2056.6,2055.1,7.31653483]
[1742996341870,17.5761,2056.6,2053.6,11.45696467]
[1742996341871,0.97311,2054.8,2054.7,0.02607]
[1742996342180,5.64061,2054.8,2054.0,3.2078]
[1742996342481,9.87,2055.5,2054.7,0.97315]
[1742996342482,0.97308,2054.9,2054.7,0.97315]
[1742996342681,0.7003,2055.0,2054.6,3.2078]
[1742996342870,0.97316,2054.7,2054.6,3.21509395]
[1742996343680,0.97316,2054.7,2054.6,0.00729395]
[1742996343881,0.97316,2054.7,2054.6,3.95e-06]
[1742996344079,2.28836,2054.7,2054.6,3.95e-06]
[1742996344271,0.97349,2054.0,2053.9,3.2078]
[1742996344469,5.64115,2054.4,2053.9,3.2078]
[1742996344671,0.97349,2054.0,2053.9,3.2078]
[1742996345073,0.97368,2053.6,2053.5,3.2078]
[1742996345281,2.43412,2053.7,2053.2,15.31026467]
[1742996345484,2.43397,2053.8,2053.2,15.31026467]
[1742996345679,0.00729395,2053.7,2053.5,3.2078]
[1742996345879,3.2078,2054.3,2053.8,0.97355]
[1742996346080,0.97351,2054.0,2053.9,3.2078]
[1742996346487,0.97348,2054.1,2053.9,4.18132]
[1742996346689,3.2078,2054.3,2053.9,3.2078]
[1742996347090,0.97347,2054.1,2053.9,4.18132]
[1742996347275,3.21509395,2054.3,2053.9,3.2078]
[1742996347784,0.97349,2054.0,2053.9,3.2078]
[1742996347977,9.87,2055.2,2053.9,2.5]
[1742996348288,0.97292,2055.2,2055.1,3.2078]
[1742996348582,0.97292,2055.2,2055.1,44.0078]
[1742996349179,0.97292,2055.2,2055.1,40.8]
[1742996349379,0.97302,2055.0,2054.9,0.00729395]
[1742996349587,10.84302,2055.0,2054.9,0.00729395]
[1742996351081,13.5722341,2055.4,2054.9,0.00729395]
[1742996351282,0.0072341,2055.4,2055.1,3.2078]
[1742996351490,0.0072341,2055.4,2055.1,4.18075]
[1742996351491,0.97288,2055.3,2055.1,4.18075]
[1742996351682,0.9800941,2055.4,2055.2,0.9729]
[1742996351887,0.0072341,2055.4,2055.3,0.97287]
[1742996352684,0.0072341,2055.4,2055.2,0.97292]
[1742996352900,0.0072341,2055.4,2055.3,0.97287]
[1742996354290,0.0072341,2055.4,2055.1,3.2078]
[1742996354486,0.97292,2055.2,2055.1,3.2078]
[1742996355591,0.9800641,2055.4,2055.2,0.97289]